bitfinex-derivatives/quotes_SOLF0:USTF0_20241216
["timestamp","ask_amount","ask_price","bid_price","bid_amount"]
[1734333856988,2.2365,223.65,223.63,6.09120245]
[1734333857685,2.04,223.68,223.62,6.09120245]
[1734333858287,2.2366,223.63,223.62,6.09120245]
[1734333858983,2.2366,223.63,223.62,11.08277475]
[1734333859887,2.2366,223.63,223.62,4.9915723]
[1734333860392,2.2368,223.61,223.6,67.36249934]
[1734333860692,2.2368,223.61,223.6,72.35543549]
[1734333861587,2.2368,223.61,223.6,67.36249934]
[1734333862192,2.2368,223.61,223.6,73.45370179]
[1734333862695,2.2365,223.64,223.6,78.44646867]
[1734333862895,2.2365,223.64,223.62,6.09120245]
[1734333863086,2.2366,223.63,223.62,6.09120245]
[1734333863993,2.2368,223.61,223.6,73.45370179]
[1734333864193,2.02,223.66,223.6,78.44655927]
[1734333864389,2.02,223.66,223.62,6.09120245]
[1734333865487,2.2366,223.63,223.62,6.09120245]
[1734333868997,2.02,223.66,223.6,73.45370179]
[1734333869198,2.2367,223.62,223.6,73.45370179]
[1734333871798,2.2368,223.61,223.6,67.36249934]
[1734333879601,4.2568,223.61,223.6,67.36249934]
[1734333882906,10.34800245,223.61,223.6,67.36249934]
[1734333883112,10.34800245,223.61,223.6,65.12849934]
[1734333883409,2.2378,223.51,223.5,6.09120245]
[1734333883713,2.02,223.56,223.5,11.08826595]
[1734333883912,2.02,223.56,223.51,4.9970635]
[1734333884106,2.2377,223.53,223.52,4.9970635]
[1734333885206,2.2377,223.53,223.5,6.09120245]
[1734333885409,2.2377,223.53,223.51,4.995534]
[1734333885613,2.2375,223.54,223.52,6.09120245]
[1734333887409,2.2376,223.53,223.52,6.09120245]
[1734333893116,2.2376,223.53,223.52,11.0764639]
[1734333893422,2.2376,223.53,223.52,6.09120245]
[1734333893612,2.2376,223.53,223.52,11.0761672]
[1734333894317,2.2374,223.55,223.52,6.09120245]
[1734333894520,2.2374,223.55,223.52,11.07578067]
[1734333894717,2.2374,223.55,223.52,6.09120245]
[1734333895823,6.09120245,223.59,223.44,8.40287891]
[1734333896023,6.09120245,223.59,223.51,6.09120245]
[1734333897123,2.2376,223.53,223.51,6.09120245]
[1734333898021,2.2374,223.56,223.51,6.09120245]
[1734333898224,2.2374,223.56,223.53,6.09120245]
[1734333898524,2.02,223.6,223.52,1.4569]
[1734333898827,2.02,223.6,223.54,6.09120245]
[1734333899319,2.2374,223.56,223.54,6.09120245]
[1734333900820,2.2374,223.55,223.54,6.09120245]
[1734333903927,6.09120245,223.59,223.52,7.54810245]
[1734333904125,2.2376,223.53,223.52,1.4569]
[1734333905025,8.11120245,223.55,223.49,6.09120245]
[1734333905221,2.2379,223.51,223.5,4.98963147]
[1734333905429,6.09120245,223.53,223.46,1.5618]
[1734333905628,6.09120245,223.53,223.47,4.99001236]
[1734333905823,6.09120245,223.53,223.46,7.65300245]
[1734333906128,6.09120245,223.53,223.47,4.99120657]
[1734333906322,6.09120245,223.53,223.46,7.65300245]
[1734333906627,6.09120245,223.53,223.47,4.99128154]
[1734333906824,6.09120245,223.53,223.46,7.65300245]
[1734333907224,2.2381,223.48,223.47,4.99118256]
[1734333908427,2.2383,223.46,223.45,0.26961]
[1734333913128,5.36676322,223.52,223.45,0.26961]
[1734333913323,2.02,223.53,223.47,6.09120245]
[1734333913524,2.02,223.56,223.49,6.09120245]
[1734333913724,2.2376,223.53,223.51,6.09120245]
[1734333914227,2.02,223.57,223.51,6.09120245]
[1734333914428,6.09120245,223.6,223.53,6.09120245]
[1734333914625,2.02,223.61,223.53,6.09120245]
[1734333914828,6.09120245,223.6,223.53,6.09120245]
[1734333915223,2.02,223.61,223.45,0.26961]
[1734333915423,2.2373,223.56,223.53,6.09120245]
[1734333916524,2.2369,223.6,223.55,6.09120245]
[1734333916727,286.27472872,223.76,223.55,6.09120245]
[1734333916728,2.02,223.61,223.55,6.09120245]
[1734333917528,2.2369,223.6,223.55,6.09120245]
[1734333918530,2.2368,223.61,223.57,6.09120245]
[1734333918736,2.02,223.63,223.57,6.09120245]
[1734333919637,2.02,223.63,223.53,2.02]
[1734333919836,2.2371,223.59,223.56,6.09120245]
[1734333920236,2.2371,223.58,223.54,6.09120245]
[1734333920441,6.09120245,223.62,223.54,6.09120245]
[1734333921638,5.45037797,223.65,223.54,6.09120245]
[1734333921839,6.09120245,223.61,223.54,6.09120245]
[1734333923445,2.237,223.59,223.54,6.09120245]
[1734333924735,2.237,223.59,223.51,2.9111]
[1734333924736,2.02,223.58,223.51,2.9111]
[1734333925242,6.09120245,223.57,223.51,2.9111]
[1734333925442,2.2375,223.55,223.51,2.9111]
[1734333925642,6.09120245,223.57,223.51,2.9111]
[1734333926544,2.2375,223.54,223.51,2.9111]
[1734333928237,6.09120245,223.57,223.51,2.9111]
[1734333928238,2.2376,223.53,223.51,2.9111]
[1734333932240,2.2376,223.53,223.52,6.09120245]
[1734333934540,2.02,223.58,223.52,6.09120245]
[1734333934541,2.2375,223.55,223.52,6.09120245]
[1734333934847,2.02,223.58,223.53,4.99096335]
[1734333935044,6.09120245,223.59,223.52,6.09120245]
[1734333935238,6.09120245,223.59,223.53,4.99083215]
[1734333935549,6.09120245,223.59,223.52,6.09120245]
[1734333935846,6.09120245,223.59,223.53,4.99079093]
[1734333936143,6.09120245,223.59,223.52,6.09120245]
[1734333936542,2.02,223.61,223.52,6.09120245]
[1734333936744,6.09120245,223.6,223.52,6.09120245]
[1734333936945,2.2371,223.58,223.52,6.09120245]
[1734333937141,6.09120245,223.6,223.52,6.09120245]
[1734333937443,8.11120245,223.61,223.54,6.09120245]
[1734333938347,2.2372,223.57,223.54,6.09120245]
[1734333938746,2.2372,223.57,223.52,8.32880245]
[1734333938941,8.11120245,223.61,223.52,6.09120245]
[1734333939139,2.2373,223.56,223.51,5.1489]
[1734333939344,2.2373,223.56,223.52,11.08262414]
[1734333939542,2.2373,223.56,223.52,6.09120245]
[1734333939945,2.2373,223.56,223.51,5.1489]
[1734333939946,2.2372,223.58,223.54,6.09120245]
[1734333941141,2.02,223.61,223.54,6.09120245]
[1734333941345,2.02,223.65,223.58,6.09120245]
[1734333941850,2.2368,223.61,223.58,6.09120245]
[1734333942850,2.02,223.65,223.58,6.09120245]
[1734333943050,2.2369,223.6,223.58,6.09120245]
[1734333943249,2.02,223.65,223.52,2.02]
[1734333943250,6.09120245,223.62,223.52,2.02]
[1734333943449,2.2374,223.55,223.53,11.07809825]
[1734333943749,2.2374,223.55,223.53,6.09120245]
[1734333946252,2.2374,223.55,223.54,4.98773926]
[1734333946552,6.09120245,223.63,223.54,7.22503926]
[1734333946742,6.09120245,223.63,223.56,6.09120245]
[1734333947543,2.02,223.65,223.56,6.09120245]
[1734333947752,6.09120245,223.64,223.56,6.09120245]
[1734333947953,2.237,223.59,223.56,6.09120245]
[1734333948858,2.237,223.59,223.58,6.09120245]
[1734333951452,2.237,223.59,223.55,2.2373]
[1734333951650,2.237,223.59,223.55,8.32850245]
[1734333953758,6.09120245,223.62,223.55,6.09120245]
[1734333954155,6.09120245,223.64,223.55,6.09120245]
[1734333954456,6.09120245,223.64,223.56,4.98292288]
[1734333954649,6.09120245,223.64,223.56,6.09120245]
[1734333956458,2.2369,223.6,223.57,4.98783754]
[1734333956760,2.2369,223.6,223.56,6.09120245]
[1734333956959,2.2369,223.6,223.57,4.98774733]
[1734333957162,2.2369,223.6,223.56,6.09120245]
[1734333957359,2.2369,223.6,223.57,4.98769917]
[1734333957554,2.2369,223.6,223.56,6.09120245]
[1734333957759,2.2369,223.6,223.57,4.99132336]
[1734333957961,2.2369,223.6,223.56,8.32840245]
[1734333958256,6.09120245,223.64,223.58,6.09120245]
[1734333958461,2.2367,223.62,223.58,6.09120245]
[1734333959365,2.2367,223.62,223.59,4.99509914]
[1734333959570,2.2367,223.62,223.58,6.09120245]
[1734333960062,2.2367,223.61,223.59,4.99507687]
[1734333960262,2.2367,223.61,223.58,6.09120245]
[1734333960464,2.2367,223.61,223.59,4.99498538]
[1734333960767,2.2367,223.61,223.57,2.02]
[1734333960957,2.2367,223.61,223.58,11.08631872]
[1734333961161,2.2367,223.61,223.59,4.99511627]
[1734333961362,2.2367,223.61,223.58,6.09120245]
[1734333961662,2.2367,223.61,223.59,4.99548443]
[1734333961873,2.2367,223.61,223.58,6.09120245]
[1734333962065,2.2367,223.61,223.59,4.99507131]
[1734333962270,2.2367,223.61,223.58,6.09120245]
[1734333962471,2.2367,223.61,223.59,4.9942445]
[1734333962665,2.2367,223.61,223.58,6.09120245]
[1734333962973,2.2367,223.61,223.59,4.99444436]
[1734333963168,2.2367,223.61,223.58,6.09120245]
[1734333963372,2.2367,223.61,223.59,4.99431835]
[1734333963574,2.2367,223.61,223.58,6.09120245]
[1734333963772,2.2367,223.61,223.59,4.99411349]
[1734333963964,2.2367,223.61,223.58,6.09120245]
[1734333964165,2.2367,223.61,223.59,4.99411349]
[1734333964370,2.2367,223.61,223.58,6.09120245]
[1734333964571,2.2367,223.61,223.59,4.99402369]
[1734333964873,2.2367,223.61,223.58,6.09120245]
[1734333965176,2.2367,223.61,223.59,4.99416751]
[1734333965376,6.09120245,223.66,223.58,6.09120245]
[1734333965577,6.09120245,223.66,223.59,4.99400799]
[1734333965778,6.09120245,223.66,223.58,6.09120245]
[1734333966076,6.09120245,223.66,223.59,4.99335902]
[1734333966275,6.09120245,223.66,223.58,6.09120245]
[1734333966479,2.2368,223.61,223.59,4.99300977]
[1734333966676,2.2368,223.61,223.58,6.09120245]
[1734333967171,2.2368,223.61,223.59,4.99286723]
[1734333967376,2.2368,223.61,223.58,6.09120245]
[1734333967578,2.2368,223.61,223.59,4.99263563]
[1734333967781,2.2368,223.61,223.58,6.09120245]
[1734333967970,2.2368,223.61,223.59,4.99263563]
[1734333968271,2.2369,223.6,223.58,6.09120245]
[1734333968976,6.09120245,223.66,223.58,6.09120245]
[1734333969171,2.2368,223.61,223.59,4.99266865]
[1734333969379,2.2368,223.61,223.58,6.09120245]
[1734333969572,2.2368,223.6,223.59,4.99247419]
[1734333969773,6.09120245,223.62,223.54,8.11120245]
[1734333969973,6.09120245,223.62,223.55,4.99355412]
[1734333970281,6.09120245,223.62,223.56,4.99355412]
[1734333970475,2.2371,223.58,223.55,6.09120245]
[1734333970680,2.2371,223.58,223.56,4.99435296]
[1734333970876,2.2371,223.58,223.55,6.09120245]
[1734333971182,2.2371,223.58,223.56,4.99461539]
[1734333971375,2.2371,223.58,223.55,6.09120245]
[1734333971583,2.2371,223.58,223.56,4.99482593]
[1734333971780,2.2371,223.58,223.55,6.09120245]
[1734333971976,2.2371,223.57,223.56,4.99524295]
[1734333973382,2.237,223.59,223.56,4.99524295]
[1734333973685,2.237,223.59,223.57,4.99524295]
[1734333973884,2.237,223.59,223.55,6.09120245]
[1734333974084,2.237,223.58,223.56,4.9960546]
[1734333974281,2.237,223.58,223.55,6.09120245]
[1734333974282,2.237,223.58,223.57,4.9960546]
[1734333975680,2.237,223.58,223.55,6.09120245]
[1734333975881,2.237,223.58,223.56,4.9964061]
[1734333976083,2.237,223.58,223.55,6.09120245]
[1734333976281,2.237,223.58,223.56,4.99664436]
[1734333976478,6.09120245,223.62,223.55,6.09120245]
[1734333976677,2.237,223.59,223.57,6.09120245]
[1734333976879,2.237,223.59,223.58,4.99753647]
[1734333978184,2.02,223.66,223.58,4.99753647]
[1734333978381,2.02,223.66,223.6,6.09120245]
[1734333978978,2.02,223.66,223.61,4.99714901]
[1734333979182,2.02,223.66,223.6,6.09120245]
[1734333979477,2.2365,223.63,223.6,6.09120245]
[1734333980782,2.2364,223.65,223.6,6.09120245]
[1734333980987,6.09120245,223.67,223.61,4.99710581]
[1734333981285,6.09120245,223.67,223.6,6.09120245]
[1734333981486,6.09120245,223.67,223.61,4.99731326]
[1734333981678,6.09120245,223.67,223.6,6.09120245]
[1734333981986,6.09120245,223.67,223.61,4.99808681]
[1734333982187,6.09120245,223.67,223.6,6.09120245]
[1734333982381,6.09120245,223.67,223.61,4.99887139]
[1734333982589,6.09120245,223.67,223.6,6.09120245]
[1734333982784,6.09120245,223.67,223.61,4.99863782]
[1734333983086,6.09120245,223.67,223.6,6.09120245]
[1734333983284,2.02,223.68,223.61,4.99867971]
[1734333983485,2.2365,223.64,223.6,6.09120245]
[1734333983689,2.02,223.68,223.61,4.99905849]
[1734333983887,2.02,223.68,223.6,6.09120245]
[1734333984082,6.09120245,223.67,223.61,4.99983599]
[1734333984279,6.09120245,223.67,223.6,6.09120245]
[1734333984483,2.2367,223.62,223.61,5.00102969]
[1734333984688,6.09120245,223.65,223.58,6.09120245]
[1734333984886,6.09120245,223.65,223.59,5.00156759]
[1734333985086,6.09120245,223.65,223.6,5.00156759]
[1734333985286,6.09120245,223.65,223.58,6.09120245]
[1734333985484,6.09120245,223.65,223.59,5.00195482]
[1734333985681,6.09120245,223.65,223.6,5.00195482]
[1734333985880,6.09120245,223.65,223.58,6.09120245]
[1734333986086,6.09120245,223.65,223.59,5.00211175]
[1734333986285,6.09120245,223.65,223.6,5.00211175]
[1734333986487,6.09120245,223.65,223.58,6.09120245]
[1734333986785,6.09120245,223.65,223.59,5.00181232]
[1734333986991,6.09120245,223.65,223.6,5.00181232]
[1734333987193,6.09120245,223.65,223.58,6.09120245]
[1734333987496,6.09120245,223.65,223.59,5.00225529]
[1734333987687,2.2369,223.6,223.58,6.09120245]
[1734333987886,2.2369,223.6,223.59,5.00237264]
[1734333992693,2.2368,223.61,223.59,5.00517803]
[1734333992897,2.2368,223.61,223.6,5.00517803]
[1734333994495,2.2367,223.62,223.6,11.09638048]
[1734333994795,2.2367,223.62,223.61,5.00517803]
[1734333995890,2.2367,223.62,223.6,6.09120245]
[1734333996091,2.2367,223.62,223.61,5.00424941]
[1734333996290,2.2367,223.62,223.6,6.09120245]
[1734333996502,2.2367,223.62,223.61,5.00424911]
[1734333997001,2.2365,223.64,223.61,5.00424911]
[1734333997300,2.2365,223.64,223.62,11.09545156]
[1734333997499,2.2365,223.64,223.62,6.09120245]
[1734333998390,2.2364,223.65,223.62,6.09120245]
[1734333998796,2.2364,223.65,223.63,5.00719485]
[1734333998992,2.2364,223.65,223.64,5.00679316]
[1734333999201,2.2364,223.65,223.62,6.09120245]
[1734333999403,2.2364,223.65,223.63,5.00587497]
[1734333999701,2.2364,223.65,223.64,5.00587497]
[1734334002602,38.85436487,223.79,223.64,11.09707742]
[1734334002804,6.09120245,223.72,223.64,6.09120245]
[1734334003003,6.09120245,223.72,223.65,5.00160609]
[1734334003199,2.2362,223.68,223.66,5.00160609]
[1734334003505,2.2362,223.68,223.64,6.09120245]
[1734334003694,2.2362,223.68,223.65,5.00024635]
[1734334003999,2.2362,223.68,223.66,5.00024635]
[1734334004194,2.2362,223.68,223.64,6.09120245]
[1734334004398,2.2362,223.68,223.65,5.00007705]
[1734334004593,2.2362,223.68,223.64,6.09120245]
[1734334004793,2.2362,223.67,223.65,4.99876208]
[1734334004994,2.02,223.73,223.66,6.09120245]
[1734334005194,8.11120245,223.73,223.66,6.09120245]
[1734334006399,2.2361,223.68,223.66,6.09120245]
[1734334011404,2.2362,223.67,223.66,6.09120245]
[1734334011999,2.2364,223.65,223.62,3.495]
[1734334012204,2.2364,223.65,223.64,6.09120245]
[1734334012405,2.2364,223.65,223.64,11.08379083]
[1734334012606,2.2364,223.65,223.64,6.09120245]
[1734334013406,2.2364,223.65,223.64,11.08384665]
[1734334016009,2.2364,223.65,223.64,6.09120245]
[1734334016313,2.2364,223.65,223.64,11.08328182]
[1734334016511,2.2364,223.65,223.64,11.08382505]
[1734334019515,2.2364,223.65,223.64,6.09120245]
[1734334019720,2.2364,223.65,223.64,11.08589275]
[1734334020622,2.2363,223.66,223.64,11.08589275]
[1734334020823,2.2363,223.66,223.64,6.09120245]
[1734334021924,2.2363,223.66,223.65,4.99565567]
[1734334022720,2.2362,223.68,223.65,4.99565567]
[1734334022914,2.2362,223.68,223.67,6.09120245]
[1734334026426,2.2359,223.7,223.67,11.08548672]
[1734334026614,2.2359,223.7,223.67,6.09120245]
[1734334027824,2.236,223.69,223.67,6.09120245]
[1734334029427,34.38436487,223.79,223.67,8.11120245]
[1734334029620,2.2357,223.73,223.72,6.09120245]
[1734334030423,2.2354,223.75,223.72,6.09120245]
[1734334030623,2.2354,223.75,223.74,6.09120245]
[1734334032624,2.2355,223.74,223.69,1.5235]
[1734334032820,2.2355,223.74,223.71,6.09120245]
[1734334034223,2.2357,223.72,223.71,6.09120245]
[1734334035827,2.2357,223.72,223.69,1.5235]
[1734334036028,2.2357,223.72,223.7,6.09120245]
[1734334036217,2.2357,223.72,223.7,11.08164663]
[1734334036418,2.2357,223.72,223.7,6.09120245]
[1734334036725,2.2358,223.71,223.7,6.09120245]
[1734334036921,2.2358,223.71,223.7,11.08173813]
[1734334037523,2.2358,223.71,223.7,6.09120245]
[1734334037724,2.2358,223.71,223.7,11.08230402]
[1734334039031,40.47556732,223.79,223.7,6.09120245]
[1734334039227,40.47556732,223.79,223.73,6.09120245]
[1734334039931,2.2355,223.74,223.73,6.09120245]
[1734334041731,40.47556732,223.79,223.73,6.09120245]
[1734334041930,34.38436487,223.79,223.73,6.09120245]
[1734334042934,5.28680155,223.88,223.78,2.235]
[1734334043134,2.02,223.88,223.82,6.09120245]
[1734334044435,2.2345,223.84,223.82,6.09120245]
[1734334046532,1.4961,224.01,223.83,2.02]
[1734334046728,6.09120245,223.96,223.88,6.09120245]
[1734334047035,2.2337,223.92,223.88,6.09120245]
[1734334047233,6.09120245,223.95,223.88,6.09120245]
[1734334047738,6.09120245,223.91,223.83,2.02]
[1734334047938,6.09120245,223.91,223.83,6.09120245]
[1734334048134,6.09120245,223.91,223.85,6.09120245]
[1734334048539,2.02,223.93,223.87,6.09120245]
[1734334048540,8.11120245,223.93,223.87,6.09120245]
[1734334049243,8.11120245,223.93,223.85,6.09120245]
[1734334049436,2.234,223.89,223.85,6.09120245]
[1734334049641,8.11120245,223.93,223.85,6.09120245]
[1734334050536,2.2341,223.88,223.85,6.09120245]
[1734334053743,2.2341,223.88,223.82,4.2546]
[1734334053744,1.4966,224.0,223.87,6.09120245]
[1734334053939,2.2338,223.92,223.89,6.09120245]
[1734334054949,6.09120245,223.95,223.87,8.11120245]
[1734334055746,6.09120245,223.93,223.84,2.02]
[1734334055945,6.09120245,223.93,223.86,6.09120245]
[1734334056848,2.2342,223.87,223.86,6.09120245]
[1734334061451,2.2334,223.95,223.86,6.09120245]
[1734334061653,6.09120245,223.97,223.9,6.09120245]
[1734334061847,5.45458106,223.98,223.9,6.09120245]
[1734334062254,2.2337,223.92,223.9,6.09120245]
[1734334062457,11.54578351,223.98,223.9,6.09120245]
[1734334063555,2.2337,223.92,223.9,6.09120245]
[1734334064653,2.2335,223.94,223.9,8.11120245]
[1734334064854,2.2335,223.94,223.93,6.09120245]
[1734334070560,2.2337,223.92,223.9,2.02]
[1734334070760,8.11120245,224.0,223.9,2.02]
[1734334071057,2.02,224.0,223.93,6.09120245]
[1734334071257,2.2333,223.96,223.95,6.09120245]
[1734334075563,2.2336,223.93,223.9,2.02]
[1734334075758,2.2336,223.93,223.92,6.09120245]
[1734334077156,2.2337,223.92,223.9,2.02]
[1734334077367,2.2337,223.92,223.91,6.09120245]
[1734334087369,2.2336,223.93,223.91,6.09120245]
[1734334087672,2.2336,223.93,223.92,6.09120245]
[1734334089680,2.02,224.04,223.92,6.09120245]
[1734334089877,2.02,224.04,223.99,6.09120245]
[1734334090084,3.5796,224.06,223.99,6.09120245]
[1734334091084,6.09120245,224.05,223.98,6.09120245]
[1734334091388,11.48990277,224.05,223.97,6.09120245]
[1734334091776,5.39870032,224.05,223.99,6.09120245]
[1734334093485,2.2329,224.0,223.99,6.09120245]
[1734334093680,2.2329,224.0,223.94,2.2334]
[1734334093880,5.39870032,224.05,223.94,2.2334]
[1734334094285,5.39870032,224.05,224.0,6.09120245]
[1734334095179,2.2328,224.01,224.0,6.09120245]
[1734334095874,11.48990277,224.05,223.88,44.76493301]
[1734334096074,6.09120245,224.03,223.96,6.09120245]
[1734334097074,2.2332,223.97,223.96,6.09120245]
[1734334099577,2.2328,224.01,223.96,6.09120245]
[1734334099774,6.09120245,224.03,223.96,6.09120245]
[1734334100179,6.09120245,224.01,223.89,4.4392]
[1734334100385,6.09120245,224.01,223.94,6.09120245]
[1734334100577,2.02,224.0,223.94,6.09120245]
[1734334101080,2.2337,223.92,223.9,2.02]
[1734334102585,2.2337,223.92,223.91,4.97951059]
[1734334102883,2.2337,223.92,223.91,11.07071304]
[1734334103275,2.2337,223.92,223.91,4.97951059]
[1734334103878,6.09120245,223.97,223.9,6.09120245]
[1734334104082,6.09120245,223.97,223.91,4.98200823]
[1734334104285,6.09120245,223.97,223.92,4.98200823]
[1734334104484,6.09120245,223.97,223.93,4.98200823]
[1734334104686,6.09120245,223.97,223.92,6.09120245]
[1734334104983,6.09120245,223.97,223.93,4.98346158]
[1734334105285,2.2336,223.93,223.92,6.09120245]
[1734334105479,2.2336,223.93,223.92,11.07522329]
[1734334108688,2.2336,223.93,223.92,4.98402084]
[1734334112587,2.2337,223.92,223.91,6.09120245]
[1734334112792,2.2337,223.92,223.91,11.07836233]
[1734334113790,2.2337,223.92,223.91,6.09120245]
[1734334113992,2.2337,223.92,223.91,11.07847861]
[1734334120394,2.2337,223.92,223.91,6.09120245]
[1734334120589,2.2337,223.92,223.91,11.07859643]
[1734334122390,2.2337,223.92,223.91,4.98739398]
[1734334124097,5.24438844,223.96,223.9,6.09120245]
[1734334124297,2.2338,223.91,223.9,6.09120245]
[1734334124504,2.2338,223.91,223.9,11.07811995]
[1734334126597,2.2338,223.91,223.9,4.9869175]
[1734334126798,2.2338,223.91,223.9,11.07811995]
[1734334127500,2.2338,223.91,223.9,4.9869175]
[1734334127705,6.09120245,223.95,223.87,6.09120245]
[1734334127706,2.2342,223.88,223.87,6.09120245]
[1734334128002,2.2342,223.88,223.87,11.07858043]
[1734334128603,2.2342,223.88,223.87,4.98737798]
[1734334128904,2.2342,223.88,223.87,11.07858043]
[1734334129904,7.26438844,223.96,223.87,11.07858043]
[1734334130205,7.26438844,223.96,223.9,6.09120245]
[1734334131399,6.09120245,223.95,223.84,3.49]
[1734334131604,6.09120245,223.95,223.87,6.09120245]
[1734334131800,6.09120245,223.95,223.88,4.98402022]
[1734334132006,2.2341,223.88,223.87,6.09120245]
[1734334132199,2.2341,223.88,223.87,11.07467488]
[1734334133206,7.26438844,223.96,223.87,11.07467488]
[1734334133410,7.26438844,223.96,223.91,6.09120245]
[1734334133705,2.2334,223.95,223.91,6.09120245]
[1734334133910,2.02,223.98,223.91,6.09120245]
[1734334134808,2.2336,223.93,223.91,6.09120245]
[1734334135112,2.02,223.98,223.91,6.09120245]
[1734334135509,2.2337,223.92,223.91,6.09120245]
[1734334135703,2.2337,223.92,223.91,11.07195121]
[1734334136613,2.2337,223.92,223.91,4.98074876]
[1734334136806,2.2338,223.91,223.9,6.09120245]
[1734334137006,2.2338,223.91,223.9,11.07305251]
[1734334140210,2.2338,223.91,223.9,6.09120245]
[1734334140514,2.2338,223.91,223.9,11.07666332]
[1734334142610,2.2338,223.91,223.9,11.07806]
[1734334148827,4.2538,223.91,223.9,4.98685755]
[1734334149120,2.2344,223.85,223.84,1.47]
[1734334149629,2.2344,223.85,223.84,6.46183307]
[1734334150426,2.02,223.91,223.84,6.46183307]
[1734334150627,2.02,223.91,223.86,6.09120245]
[1734334151425,2.2339,223.9,223.86,6.09120245]
[1734334151626,2.02,223.91,223.86,6.09120245]
[1734334152420,2.2342,223.87,223.86,6.09120245]
[1734334153132,2.2342,223.87,223.86,11.07724493]
[1734334154330,2.2342,223.87,223.86,6.09120245]
[1734334154628,2.2342,223.87,223.86,11.07585239]
[1734334155823,2.2342,223.87,223.86,11.07534891]
[1734334158431,2.2342,223.87,223.86,6.09120245]
[1734334158627,2.2342,223.87,223.86,11.07421798]
[1734334159029,2.2342,223.87,223.86,6.09120245]
[1734334159537,2.2342,223.87,223.86,11.074055]
[1734334160231,2.2342,223.87,223.86,6.09120245]
[1734334165438,2.2344,223.85,223.84,1.47]
[1734334165737,2.2344,223.85,223.84,6.45200193]
[1734334170043,2.2344,223.85,223.84,12.54320438]
[1734334170439,2.2344,223.85,223.84,6.45200193]
[1734334170641,2.2344,223.85,223.84,12.54320438]
[1734334172543,2.2344,223.85,223.84,7.56120245]
[1734334172738,2.2344,223.85,223.84,12.54040917]
[1734334175543,2.2344,223.85,223.84,4.97920672]
[1734334175745,2.2342,223.88,223.84,6.09120245]
[1734334175941,2.02,223.91,223.84,6.09120245]
[1734334176341,2.2344,223.85,223.84,6.09120245]
[1734334176643,2.2344,223.85,223.84,11.06897278]
[1734334177538,2.2349,223.8,223.79,1.5251]
[1734334177742,2.2349,223.8,223.79,12.59572341]
[1734334177944,2.02,223.86,223.79,12.59572341]
[1734334178143,2.02,223.86,223.82,6.09120245]
[1734334178745,2.2346,223.83,223.79,1.5251]
[1734334179040,2.02,223.86,223.79,1.5251]
[1734334179041,2.02,223.86,223.81,6.09120245]
[1734334180443,2.2344,223.85,223.81,6.09120245]
[1734334180652,2.02,223.86,223.81,6.09120245]
[1734334181450,2.2347,223.82,223.81,6.09120245]
[1734334181653,2.2347,223.82,223.81,11.07072956]
[1734334182552,2.2347,223.82,223.81,6.09120245]
[1734334182757,2.2347,223.82,223.81,11.07064964]
[1734334185552,2.2347,223.82,223.81,6.09120245]
[1734334185759,2.2347,223.82,223.81,11.07083373]
[1734334186561,2.2346,223.83,223.81,11.07083373]
[1734334186858,2.2346,223.83,223.82,11.07083373]
[1734334191059,5.26504661,223.89,223.82,11.07083373]
[1734334191263,6.09120245,223.93,223.85,6.09120245]
[1734334191459,8.11120245,223.93,223.86,4.98229749]
[1734334191666,8.11120245,223.93,223.85,6.09120245]
[1734334191867,8.11120245,223.93,223.86,4.98149113]
[1734334192060,2.2338,223.91,223.85,6.09120245]
[1734334192260,2.02,223.92,223.86,4.98126808]
[1734334192464,2.02,223.92,223.82,2.02]
[1734334192663,2.02,223.92,223.86,6.09120245]
[1734334193264,2.2338,223.91,223.87,4.98381259]
[1734334193465,2.02,223.92,223.86,6.09120245]
[1734334194064,7.37740761,223.92,223.87,4.98371812]
[1734334194264,7.37740761,223.92,223.86,6.09120245]
[1734334194461,7.37740761,223.92,223.87,4.98369942]
[1734334194665,2.2342,223.87,223.86,6.09120245]
[1734334194860,2.2342,223.87,223.86,11.07513182]
[1734334195370,2.2342,223.87,223.86,11.07516653]
[1734334200075,2.2342,223.87,223.86,4.98396408]
[1734334200474,6.09120245,223.91,223.84,6.09120245]
[1734334200675,6.09120245,223.91,223.85,4.98429831]
[1734334200676,2.2343,223.86,223.85,4.98429831]
[1734334201072,2.2343,223.86,223.85,4.98431789]
[1734334201374,2.2343,223.86,223.84,6.09120245]